bitfinex-derivatives/quotes_ETHF0:USTF0_20240913
["timestamp","ask_amount","ask_price","bid_price","bid_amount"]
[1726236938314,0.4093,2367.9,2367.8,3.2078]
[1726236939110,0.4093,2367.9,2367.6,3.3]
[1726236939111,0.83155,2367.9,2367.6,3.3]
[1726236939320,0.4093,2367.9,2367.6,3.3]
[1726236939625,0.4093,2367.9,2367.8,3.2078]
[1726236939828,0.4093,2367.9,2367.6,3.72229]
[1726236940023,0.4093,2367.9,2367.6,3.3]
[1726236940322,0.4023,2368.2,2367.8,3.2078]
[1726236940530,0.4023,2368.2,2367.8,3.63006]
[1726236940920,0.8245,2368.2,2367.8,3.63006]
[1726236941122,0.42221,2368.1,2367.8,3.2078]
[1726236941323,0.42222,2368.1,2367.8,3.2078]
[1726236941525,0.42225,2368.0,2367.5,3.63011]
[1726236941820,0.42224,2368.0,2367.5,3.6301]
[1726236942025,0.42224,2368.0,2367.6,0.4223]
[1726236942219,0.42223,2368.0,2367.6,0.42229]
[1726236942421,0.4023,2368.2,2367.5,3.2078]
[1726236942618,0.4023,2368.2,2367.8,3.2078]
[1726236942823,0.42221,2368.1,2367.8,3.2078]
[1726236943018,0.42223,2368.0,2367.8,3.2078]
[1726236943320,0.42225,2367.9,2367.8,3.2078]
[1726236943929,4.64545,2367.9,2367.8,3.2078]
[1726236944130,4.2232,2367.9,2367.8,3.2078]
[1726236944432,1.45782,2368.2,2367.8,3.63006]
[1726236944433,0.8245,2368.2,2367.8,3.63006]
[1726236944727,0.21106499,2369.5,2368.4,0.42216]
[1726236944728,0.42211,2368.7,2368.4,0.42216]
[1726236944920,0.42214,2368.5,2368.4,3.2078]
[1726236945233,0.4029,2369.0,2367.8,4.06]
[1726236945234,0.42219,2368.2,2367.9,0.42224]
[1726236945429,0.4222,2368.2,2367.8,3.63005]
[1726236945634,0.4222,2368.2,2368.1,3.2078]
[1726236945930,0.42219,2368.3,2368.1,3.2078]
[1726236946126,0.42219,2368.2,2368.1,3.2078]
[1726236946526,4.64459,2368.2,2368.1,3.2078]
[1726236946720,4.2224,2368.2,2368.1,3.2078]
[1726236946926,0.42219,2368.2,2368.1,3.2078]
[1726236947122,0.42219,2368.3,2368.1,3.2078]
[1726236947327,1.05531,2368.6,2368.1,3.2078]
[1726236947528,0.42218,2368.3,2368.1,3.2078]
[1726236947939,0.42219,2368.2,2368.1,3.2078]
[1726236948230,0.81229,2368.2,2368.1,3.2078]
[1726236949635,0.3901,2368.2,2368.1,3.2078]
[1726236949824,0.3781,2368.4,2368.1,3.2078]
[1726236949825,0.42218,2368.3,2368.1,3.2078]
[1726236950023,0.80027,2368.4,2368.1,3.63001]
[1726236950229,0.42218,2368.3,2368.1,3.2078]
[1726236950431,0.42219,2368.3,2368.1,3.2078]
[1726236950627,0.42218,2368.3,2368.1,3.2078]
[1726236950832,0.3781,2368.4,2368.1,3.2078]
[1726236951132,0.4222,2368.2,2367.9,0.42224]
[1726236951339,0.42222,2368.1,2367.9,3.2078]
[1726236953039,0.42223,2368.0,2367.9,3.2078]
[1726236953235,1.05547,2368.3,2367.9,3.2078]
[1726236953540,0.42222,2368.1,2367.9,3.2078]
[1726236953728,0.42223,2368.0,2367.9,3.2078]
[1726236954437,0.42223,2368.0,2367.4,4.9285]
[1726236954438,11.27878,2368.0,2367.5,3.63011]
[1726236954639,0.4223,2367.7,2367.5,3.2078]
[1726236954834,0.4223,2367.7,2367.6,3.2078]
[1726236955132,0.4223,2367.7,2367.0,5.25401]
[1726236955133,0.42234,2367.4,2367.3,3.2078]
[1726236956125,0.42237,2367.2,2367.1,4.06]
[1726236956429,0.42239,2367.1,2367.0,3.2078]
[1726236959134,3.2078,2367.7,2367.0,3.63021]
[1726236959135,0.42236,2367.3,2367.0,3.63021]
[1726236959436,1.05588,2367.4,2367.0,3.2078]
[1726236959437,0.42238,2367.2,2367.0,3.2078]
[1726236959942,0.42239,2367.1,2367.0,3.2078]
[1726236960348,0.42242,2367.0,2366.8,4.06]
[1726236960538,0.4224,2367.1,2366.8,4.48243]
[1726236960838,1.05585,2367.4,2367.1,0.42238]
[1726236960839,0.42234,2367.4,2367.1,0.42238]
[1726236961139,1.05573,2367.7,2367.3,3.2078]
[1726236961436,0.42232,2367.5,2367.3,3.2078]
[1726236961638,0.3882,2367.8,2367.3,3.2078]
[1726236961831,0.42228,2367.7,2367.6,3.2078]
[1726236962038,1.47799,2367.7,2367.6,3.2078]
[1726236962233,0.42234,2367.4,2367.3,3.2078]
[1726236962537,0.42236,2367.3,2367.1,0.42239]
[1726236963046,0.42234,2367.4,2367.0,3.2078]
[1726236963237,0.42236,2367.3,2367.1,0.42238]
[1726236963439,1.05573,2367.7,2367.0,3.2078]
[1726236963440,0.42238,2367.2,2367.0,3.2078]
[1726236963637,1.05571,2367.7,2367.0,3.6302]
[1726236963638,0.42237,2367.3,2367.0,3.6302]
[1726236963834,0.42239,2367.1,2367.0,3.2078]
[1726236964037,0.42242,2367.0,2366.8,0.42244]
[1726236964237,0.42242,2367.0,2366.7,6.93025]
[1726236964442,0.42239,2367.2,2366.9,0.42241]
[1726236964745,0.42239,2367.1,2367.0,3.2078]
[1726236965134,0.42244,2366.8,2366.7,3.3]
[1726236965557,0.42251,2366.5,2366.3,6.5078]
[1726236965840,0.42247,2366.7,2366.3,6.5078]
[1726236966041,1.45411,2367.1,2366.6,3.2078]
[1726236966240,0.7924,2367.2,2366.6,3.63027]
[1726236966441,0.42241,2367.0,2366.9,3.2078]
[1726236966651,0.82458,2367.2,2366.9,3.63022]
[1726236966839,0.42239,2367.1,2366.9,3.2078]
[1726236967036,0.4022,2367.2,2366.9,3.2078]
[1726236967437,0.42239,2367.1,2366.9,3.2078]
[1726236967943,0.42241,2367.0,2366.9,3.2078]
[1726236968550,0.4022,2367.2,2366.6,0.3327]
[1726236968551,0.42243,2366.9,2366.6,0.3327]
[1726236968744,0.42246,2366.8,2366.5,3.63029]
[1726236968940,3.2078,2367.1,2366.4,0.4225]
[1726236969140,1.05632,2366.4,2365.8,3.2078]
[1726236969346,0.82714,2366.3,2366.1,3.2078]
[1726236969845,0.42258,2366.1,2365.8,3.63041]
[1726236970047,0.42257,2366.1,2365.8,3.63041]
[1726236970547,0.42259,2366.0,2365.8,3.2078]
[1726236970741,0.42257,2366.1,2365.8,3.63042]
[1726236970944,0.4046,2366.3,2365.8,3.2078]
[1726236971143,0.4226,2366.0,2365.8,3.2078]
[1726236971342,0.42258,2366.1,2365.8,3.2078]
[1726236971542,0.42258,2366.1,2365.8,3.63042]
[1726236971842,0.4046,2366.3,2366.0,0.42258]
[1726236972038,0.4046,2366.3,2365.6,8.258]
[1726236972039,0.83,2366.5,2366.1,3.2078]
[1726236972238,5.20213,2366.8,2366.1,3.2078]
[1726236972239,0.3805,2366.8,2366.4,3.2078]
[1726236972647,0.42247,2366.7,2366.2,0.3695]
[1726236972940,0.3805,2366.8,2366.2,0.3695]
[1726236973148,0.4225,2366.5,2366.4,3.2078]
[1726236973446,0.3805,2366.8,2366.5,0.42249]
[1726236973639,0.3691,2367.0,2366.7,0.42245]
[1726236973839,0.42239,2367.1,2366.7,3.2078]
[1726236974144,0.7625,2367.2,2366.7,3.2078]
[1726236974449,0.42243,2366.9,2366.6,0.42247]
[1726236974647,0.42241,2367.0,2366.7,0.42246]
[1726236974947,0.42245,2366.8,2366.5,0.42249]
[1726236975647,0.42247,2366.7,2366.4,3.2078]
[1726236976042,3.2078,2367.0,2366.4,3.2078]
[1726236976243,0.3764,2366.6,2366.4,3.2078]
[1726236976547,0.4225,2366.5,2366.4,3.2078]
[1726236976739,0.4225,2366.5,2366.2,0.42255]
[1726236976939,0.42251,2366.4,2366.3,3.2078]
[1726236977642,1.43263,2366.6,2366.3,3.2078]
[1726236977949,1.43263,2366.6,2366.0,4.198]
[1726236977950,0.42256,2366.2,2366.0,4.198]
[1726236978252,0.42259,2366.0,2365.8,3.2078]
[1726236978849,0.3863,2366.2,2365.8,3.2078]
[1726236979044,0.3863,2366.2,2365.4,3.2078]
[1726236979242,0.42261,2365.9,2365.5,0.42267]
[1726236979449,0.42259,2366.0,2365.7,3.2078]
[1726236979849,0.42261,2365.9,2365.7,3.2078]
[1726236980048,0.4226,2366.0,2365.7,3.2078]
[1726236980352,0.3863,2366.2,2365.7,3.2078]
[1726236980544,0.80886,2366.2,2365.7,3.2078]
[1726236980739,0.3863,2366.2,2365.8,0.42261]
[1726236980944,0.3863,2366.2,2365.7,3.63043]
[1726236981146,3.5941,2366.2,2365.7,3.2078]
[1726236981441,0.42265,2365.7,2365.4,3.2078]
[1726236981639,0.42263,2365.8,2365.4,3.63048]
[1726236981845,0.42262,2365.9,2365.4,3.2078]
[1726236982043,0.42262,2365.8,2365.7,3.2078]
[1726236982866,0.42261,2365.9,2365.7,3.2078]
[1726236983341,0.42261,2365.9,2365.6,0.42265]
[1726236983541,0.3859,2366.0,2365.7,3.2078]
[1726236983745,0.3859,2366.0,2365.9,0.4226]
[1726236984047,0.42257,2366.1,2365.7,7.2678]
[1726236984448,0.42257,2366.1,2366.0,3.2078]
[1726236984751,0.42257,2366.1,2365.9,3.6304]
[1726236984949,0.3863,2366.2,2365.9,3.2078]
[1726236985149,0.42257,2366.1,2365.9,3.6304]
[1726236985754,0.3863,2366.2,2365.9,3.2078]
[1726236985963,0.42259,2366.0,2365.9,3.2078]
[1726236987850,0.42265,2365.7,2365.4,3.2078]
[1726236988057,1.05652,2365.9,2365.4,3.63049]
[1726236988256,1.42758,2365.8,2365.4,3.2078]
[1726236988551,0.42266,2365.6,2365.4,3.2078]
[1726236988750,0.42265,2365.7,2365.4,3.63049]
[1726236988944,0.42264,2365.7,2365.4,3.2078]
[1726236989151,0.79363,2365.8,2365.5,0.42267]
[1726236989553,0.79363,2365.8,2365.4,3.2078]
[1726236989554,0.371,2365.8,2365.4,3.2078]
[1726236989745,0.3863,2366.2,2365.7,3.2078]
[1726236989950,0.42259,2366.0,2365.7,3.63043]
[1726236990754,0.42261,2365.9,2365.7,3.2078]
[1726236990949,1.42746,2366.1,2365.5,0.42267]
[1726236991145,0.371,2366.1,2365.4,7.2678]
[1726236991345,0.42259,2366.0,2365.7,3.63043]
[1726236991654,0.371,2366.1,2365.7,3.2078]
[1726236991851,0.42259,2366.0,2365.7,3.63043]
[1726236992050,0.42261,2365.9,2365.7,3.2078]
[1726236992450,0.42261,2365.9,2365.7,3.63043]
[1726236992852,0.42259,2366.0,2365.8,0.42262]
[1726236993054,0.371,2366.1,2365.9,0.4226]
[1726236993259,0.371,2366.1,2366.0,3.2078]
[1726236993453,0.79358,2366.1,2365.9,0.4226]
[1726236994250,0.371,2366.1,2366.0,3.2078]
[1726236994455,0.42253,2366.4,2366.0,3.2078]
[1726236994650,0.42254,2366.3,2366.1,0.42256]
[1726236994957,0.42254,2366.3,2366.1,0.42257]
[1726236995158,0.42255,2366.2,2366.1,0.42257]
[1726236995463,1.05626,2366.5,2366.0,3.2078]
[1726236995464,0.42257,2366.1,2366.0,3.2078]
[1726236995655,0.42256,2366.2,2366.0,3.2078]
[1726236996051,0.42257,2366.1,2366.0,3.2078]
[1726236996250,0.42257,2366.1,2365.9,0.42259]
[1726236996562,0.42257,2366.1,2366.0,3.2078]
[1726236996758,1.05633,2366.4,2365.8,0.42261]
[1726236996759,0.42259,2366.0,2365.8,0.42261]
[1726236997065,1.05636,2366.3,2365.9,0.42259]
[1726236997267,1.05638,2366.2,2365.7,3.2078]
[1726236997566,1.44468,2366.2,2365.7,3.2078]
[1726236997965,0.42257,2366.1,2365.9,0.4226]
[1726236998355,0.3883,2366.2,2366.0,3.2078]
[1726236998669,0.81086,2366.2,2366.0,3.63038]
[1726236998963,0.42255,2366.2,2366.1,0.42257]
[1726236999461,1.44626,2366.5,2366.0,3.2078]
[1726236999462,0.42253,2366.4,2366.0,3.2078]
[1726236999665,0.39,2366.5,2366.0,3.2078]
[1726236999961,1.44626,2366.5,2366.1,0.42256]
[1726237000462,1.44626,2366.5,2366.0,3.2078]
[1726237000463,0.42256,2366.2,2366.0,0.42258]
[1726237000664,0.42256,2366.2,2365.7,8.3244]
[1726237000965,0.39,2366.5,2366.1,0.42256]
[1726237000966,1.44629,2366.5,2366.1,0.42256]
[1726237001152,0.42255,2366.3,2366.1,0.42256]
[1726237001357,0.42255,2366.2,2366.1,0.42256]
[1726237001855,0.42257,2366.1,2366.0,3.2078]
[1726237002057,0.42262,2365.8,2365.7,3.2078]
[1726237002259,0.42265,2365.7,2365.5,0.42266]
[1726237002558,0.42268,2365.5,2365.4,3.2078]
[1726237002754,1.05656,2365.8,2365.4,3.63049]
[1726237002755,0.42267,2365.6,2365.4,3.63049]
[1726237002956,1.05656,2365.8,2365.4,3.2078]
[1726237003159,0.42267,2365.6,2365.4,3.63049]
[1726237003369,0.42265,2365.7,2365.5,0.42268]
[1726237003663,0.3894,2365.9,2365.4,3.2078]
[1726237003859,0.42261,2365.9,2365.7,3.63043]
[1726237004061,0.42262,2365.8,2365.6,0.42265]
[1726237005370,0.42262,2365.9,2365.7,0.42264]
[1726237005560,1.83668,2366.0,2365.7,3.2078]
[1726237005561,1.2028,2366.0,2365.7,3.2078]
[1726237005766,0.4226,2365.9,2365.7,3.63042]
[1726237006366,2.20930667,2366.3,2365.9,0.4226]
[1726237006559,2.20930667,2366.3,2365.7,3.2078]
[1726237006560,0.42256,2366.2,2366.0,3.63037]
[1726237006862,0.80272,2366.4,2366.1,0.42256]
[1726237007266,0.42253,2366.3,2366.1,0.42256]
[1726237007465,0.80272,2366.4,2366.2,0.42255]
[1726237007665,0.42253,2366.3,2366.1,0.42256]
[1726237007966,0.80273,2366.4,2366.2,0.42255]
[1726237008158,0.42253,2366.3,2366.2,0.42255]
[1726237008356,0.80272,2366.4,2366.2,0.42255]
[1726237008670,1.44278,2366.7,2366.3,3.2078]
[1726237008671,2.20930667,2366.7,2366.3,3.2078]
[1726237008861,7.41144667,2366.8,2366.4,0.42251]
[1726237009167,0.42249,2366.6,2366.4,0.42251]
[1726237009357,0.4225,2366.5,2366.3,6.93032]
[1726237009565,0.42251,2366.5,2366.4,0.42251]
[1726237009765,0.4225,2366.5,2366.3,6.93032]
[1726237010166,0.4225,2366.5,2366.3,3.63032]
[1726237010362,0.42248,2366.6,2366.4,0.42251]
[1726237010868,0.4225,2366.6,2366.3,3.63032]
[1726237011171,0.4225,2366.6,2366.4,0.42251]
[1726237011568,2.63180667,2366.6,2366.4,0.42251]
[1726237011763,2.63180667,2366.6,2366.3,3.63032]
[1726237011972,2.63180667,2366.6,2366.4,0.42251]
[1726237012168,2.63180667,2366.6,2366.3,3.63032]
[1726237012672,2.20930667,2366.6,2366.3,3.2078]
[1726237012879,0.42253,2366.4,2366.1,0.42256]
[1726237013069,0.3712,2366.3,2366.1,0.42256]
[1726237013369,0.3712,2366.3,2366.2,0.42255]
[1726237013568,0.3712,2366.3,2366.1,0.42256]
[1726237013775,0.3712,2366.3,2366.2,0.42255]
[1726237014465,0.3712,2366.3,2366.1,0.42256]
[1726237014865,0.3712,2366.3,2366.0,7.2678]
[1726237015174,0.3712,2366.3,2366.1,0.42257]
[1726237015567,0.3712,2366.3,2366.0,7.2678]
[1726237015568,0.3712,2366.3,2366.0,3.2078]
[1726237015767,2.20930667,2366.3,2366.2,0.42255]
[1726237016073,2.20930667,2366.6,2366.2,4.2264]
[1726237016264,0.4225,2366.5,2366.4,0.4225]
[1726237016470,2.20930667,2366.6,2366.3,0.42252]
[1726237016668,2.63180667,2366.5,2366.2,3.2078]
[1726237016867,2.20930667,2366.6,2366.2,3.2078]
[1726237017072,0.42251,2366.5,2366.3,0.42252]
[1726237017275,2.63181667,2366.5,2366.3,0.42252]
[1726237017578,2.63181667,2366.5,2366.4,0.42251]
[1726237017774,2.63179667,2366.6,2366.4,0.42251]
[1726237018073,2.20930667,2366.7,2366.5,3.6303]
[1726237018270,2.20930667,2367.0,2366.8,0.42244]
[1726237018470,5.38489564,2367.1,2366.9,0.42241]
[1726237018772,2.61770667,2367.1,2366.9,0.42241]
[1726237018979,2.61770667,2367.1,2366.8,3.2078]
[1726237019171,2.61770667,2367.1,2366.9,0.42242]
[1726237019873,2.61770667,2367.1,2366.8,0.42243]
[1726237019874,3.04010667,2367.1,2366.8,0.42243]
[1726237020079,3.04010667,2367.1,2366.8,3.63023]
[1726237020384,3.04010667,2367.1,2366.9,0.42242]
[1726237020779,3.04010667,2367.1,2366.8,3.63023]
[1726237021571,3.04010667,2367.1,2367.0,0.42241]
[1726237021572,2.20930667,2367.1,2367.0,0.42241]
[1726237021775,2.20930667,2367.4,2367.3,0.42235]
[1726237022080,2.63163667,2367.5,2367.3,3.2078]
[1726237022272,2.20930667,2367.5,2367.2,0.42236]
[1726237022468,2.58500667,2367.6,2367.4,0.42234]
[1726237022674,0.42232,2367.5,2367.3,3.63015]
[1726237022878,2.20930667,2367.5,2367.3,3.63015]
[1726237023078,3.00731667,2367.6,2367.3,3.63015]
[1726237023376,0.42232,2367.5,2367.3,3.2078]
[1726237023576,2.63162667,2367.5,2367.3,3.2078]
[1726237023776,2.20930667,2367.5,2367.3,0.42235]
[1726237023976,3.00731667,2367.6,2367.3,0.42235]
[1726237024171,3.00731667,2367.6,2367.3,3.63015]
[1726237024970,0.3757,2367.6,2367.4,0.42233]
[1726237025175,3.00731667,2367.6,2367.3,3.63015]
[1726237025371,0.79801,2367.6,2367.3,3.63015]
[1726237025878,0.3757,2367.6,2367.3,3.2078]
[1726237026082,0.798,2367.6,2367.3,3.63014]
[1726237026477,0.798,2367.6,2367.3,3.2078]
[1726237026478,0.3757,2367.6,2367.3,3.2078]
[1726237026783,0.79801,2367.6,2367.3,0.42234]
[1726237026982,0.3757,2367.6,2367.4,0.42234]
[1726237027283,0.3757,2367.6,2367.3,3.2078]
[1726237027898,2.63158667,2367.8,2367.5,0.42232]
[1726237028078,4.1620537,2368.0,2367.8,0.42226]
[1726237028079,0.4082,2368.0,2367.8,0.42226]
[1726237028280,0.4082,2368.0,2367.6,3.2078]
[1726237028281,0.4082,2368.0,2367.9,0.42225]
[1726237028479,0.3712,2368.1,2367.7,1.05568]
[1726237028778,0.3712,2368.1,2368.0,0.42223]
[1726237029374,0.42219,2368.2,2368.0,0.42223]
[1726237029778,1.20539,2368.3,2367.9,3.2078]
[1726237029986,0.4082,2368.3,2367.9,3.2078]
[1726237030179,0.42223,2368.0,2367.9,3.2078]
[1726237030374,0.8129,2368.3,2367.9,3.2078]
[1726237030579,0.42221,2368.2,2368.0,0.42223]
[1726237031083,0.42221,2368.1,2367.9,3.63003]
[1726237031581,1.86836,2368.3,2367.9,3.63004]
[1726237031783,1.86836,2368.3,2368.0,0.42223]
[1726237031987,0.42221,2368.2,2368.0,0.42223]
[1726237032178,0.42222,2368.1,2367.9,3.63004]
[1726237034285,0.42223,2368.0,2367.9,3.63005]
[1726237034487,0.42223,2368.1,2367.9,3.63005]
[1726237034674,1.47781,2368.0,2367.9,3.2078]
[1726237034881,0.42229,2367.7,2367.6,0.4223]
[1726237035075,0.42228,2367.8,2367.6,0.4223]
[1726237035279,0.42228,2367.8,2367.5,3.2078]
[1726237035486,0.81395,2367.9,2367.7,0.42227]
[1726237035780,1.05551,2368.2,2367.9,0.42224]
[1726237035977,1.44721,2368.2,2367.8,3.63006]
[1726237036173,0.42224,2368.0,2367.8,3.63006]
[1726237036378,0.42225,2367.9,2367.8,3.2078]
[1726237036578,0.42228,2367.8,2367.6,0.42229]
[1726237036777,0.3992,2367.7,2367.6,3.63009]
[1726237036975,0.82148,2367.7,2367.6,3.63009]
[1726237037184,0.82148,2367.7,2367.6,3.2078]
[1726237037185,0.3992,2367.7,2367.6,3.2078]
[1726237037388,0.82148,2367.7,2367.6,3.2078]
[1726237037581,0.3992,2367.7,2367.6,0.4223]
[1726237037781,0.3992,2367.7,2367.6,3.6301]
[1726237038377,1.05557,2368.1,2367.8,0.42226]
[1726237038583,1.05557,2368.1,2367.6,6.5078]
[1726237038584,0.3992,2368.1,2367.6,7.56355]
[1726237038782,0.3992,2368.1,2367.9,3.63004]
[1726237038994,0.82142,2368.1,2367.9,3.2078]
[1726237039179,0.3992,2368.1,2368.0,0.42223]
[1726237040093,0.42223,2368.0,2367.9,3.63004]
[1726237040390,0.42224,2368.0,2367.9,3.2078]
[1726237040889,1.45474,2368.1,2367.9,3.63004]
[1726237040890,0.3992,2368.1,2367.9,3.63004]
[1726237041182,0.82142,2368.1,2368.0,0.42223]
[1726237041582,0.3992,2368.1,2367.9,3.63004]
[1726237041782,0.42225,2367.9,2367.8,0.42226]
[1726237042078,0.42225,2367.9,2367.6,3.63009]
[1726237042079,0.42227,2367.8,2367.6,3.63009]
[1726237042285,0.42228,2367.7,2367.6,3.2078]
[1726237042485,4.594,2367.7,2367.3,3.2078]
[1726237042688,1.0558,2367.5,2367.0,3.2078]
[1726237042879,0.42239,2367.1,2367.0,3.2078]
[1726237043080,1.05589,2367.3,2366.8,3.3]
[1726237043282,0.42242,2367.0,2366.6,3.72247]
[1726237043587,0.42242,2367.0,2366.7,3.2078]
[1726237043783,0.3902,2367.2,2366.7,3.63026]
[1726237043982,0.42242,2367.0,2366.7,3.2078]
[1726237044183,0.3902,2367.2,2366.7,3.2078]
[1726237044184,0.42243,2366.9,2366.7,3.2078]
[1726237044396,0.3986,2366.8,2366.7,3.2078]
[1726237047383,0.3902,2367.2,2366.7,3.2078]
[1726237047593,0.3913,2367.1,2366.7,3.63025]
[1726237047789,0.42241,2367.0,2366.7,3.63025]
[1726237048583,0.42241,2367.0,2366.7,3.2078]
[1726237048992,0.42244,2366.8,2366.7,3.2078]
[1726237049291,0.3913,2367.1,2366.7,3.2078]
[1726237049292,0.42244,2366.9,2366.7,3.2078]
[1726237049500,0.42241,2367.0,2366.7,3.2078]
[1726237049688,0.42241,2367.0,2366.7,3.63026]
[1726237049885,0.42243,2366.9,2366.7,3.2078]
[1726237050093,0.42244,2366.8,2366.7,3.2078]
[1726237050696,0.3913,2367.1,2366.6,0.42247]
[1726237050697,0.42244,2366.9,2366.6,0.42247]
[1726237050895,0.42244,2366.8,2366.7,3.2078]
[1726237051096,0.42245,2366.8,2366.4,3.2078]
[1726237051291,0.42244,2366.9,2366.7,3.2078]
[1726237051593,0.42245,2366.8,2366.6,0.42248]
[1726237051793,0.42245,2366.8,2366.7,3.2078]
[1726237051992,0.42243,2366.9,2366.7,3.63025]
[1726237052195,0.42244,2366.8,2366.7,3.2078]
[1726237052397,1.05609,2366.9,2366.5,0.4225]
[1726237052591,0.42248,2366.6,2366.4,3.6303]
[1726237052792,1.05609,2366.9,2366.4,3.6303]
[1726237052793,0.42247,2366.7,2366.4,3.6303]
[1726237052992,0.42248,2366.6,2366.4,3.6303]
[1726237053494,0.75614897,2366.9,2366.4,3.63031]
[1726237053695,0.42247,2366.7,2366.5,0.4225]
[1726237053895,0.42246,2366.8,2366.4,3.2078]
[1726237054192,0.42246,2366.8,2366.7,3.2078]
[1726237054401,0.42246,2366.8,2366.4,3.2078]
[1726237054593,0.42246,2366.7,2366.5,0.42248]
[1726237055294,0.42246,2366.8,2366.6,0.42248]
[1726237055498,0.42247,2366.7,2366.5,0.42249]
[1726237055890,0.42248,2366.6,2366.4,3.6303]
[1726237056395,0.42248,2366.7,2366.5,0.4225]
[1726237057297,0.42248,2366.6,2366.5,0.4225]
[1726237057500,0.42248,2366.6,2366.4,3.6303]
[1726237057795,0.42248,2366.6,2366.5,0.4225]
[1726237058596,1.05607,2366.9,2366.5,0.4225]
[1726237058791,1.05612,2366.8,2366.5,0.4225]
[1726237059002,0.42248,2366.6,2366.4,3.6303]
[1726237059301,0.4225,2366.5,2366.4,3.6303]
[1726237059703,1.0562,2366.6,2366.1,3.9314]
[1726237060004,0.8201,2366.5,2366.4,0.42251]
[1726237060199,0.42249,2366.6,2366.4,0.42251]
[1726237060398,1.44162,2366.8,2366.3,3.2078]
[1726237060399,1.05617,2366.7,2366.3,3.2078]
[1726237060592,0.4225,2366.5,2366.4,0.42251]
[1726237061400,0.42251,2366.4,2366.3,3.2078]
[1726237061606,0.42251,2366.5,2366.4,0.42251]
[1726237061902,0.42251,2366.4,2366.3,3.63032]
[1726237062104,0.42251,2366.5,2366.4,0.42251]
[1726237062491,0.42251,2366.4,2366.3,3.63033]
[1726237062803,0.42251,2366.4,2366.3,3.2078]
[1726237063406,0.80761,2366.4,2366.2,0.42254]
[1726237063594,0.80763,2366.4,2366.2,3.63034]
[1726237064502,0.80763,2366.4,2366.3,0.42253]
[1726237065596,0.42253,2366.3,2366.2,3.63034]
[1726237065904,0.80763,2366.4,2366.2,3.63034]
[1726237066103,0.80763,2366.4,2366.2,3.2078]
[1726237066306,0.42253,2366.3,2366.2,3.63034]
[1726237066506,0.80763,2366.4,2366.3,0.42253]
[1726237066803,0.80763,2366.4,2366.2,3.63034]
[1726237067205,0.80763,2366.4,2366.2,3.2078]
[1726237067206,0.42253,2366.3,2366.2,3.2078]
[1726237068504,0.42253,2366.3,2366.2,3.63035]
[1726237068700,0.42253,2366.3,2366.2,3.2078]
[1726237069998,0.42253,2366.3,2366.2,3.63035]
[1726237070904,0.42253,2366.3,2366.2,3.2078]
[1726237071298,0.42253,2366.3,2366.2,3.63035]
[1726237071595,1.47887,2366.3,2366.2,3.2078]
[1726237072301,0.42253,2366.3,2366.2,3.2078]
[1726237073206,0.42255,2366.2,2366.1,0.42255]
[1726237074103,0.42255,2366.3,2366.2,0.42255]
[1726237074308,0.80763,2366.4,2366.2,3.63035]
[1726237074515,0.3851,2366.4,2366.3,0.42253]
[1726237074708,0.80763,2366.4,2366.3,0.42253]
[1726237075209,0.80761,2366.4,2366.3,0.42253]
[1726237075404,0.80761,2366.4,2366.2,3.2078]
[1726237075405,0.42253,2366.3,2366.2,3.63034]
[1726237077809,0.33628683,2366.7,2366.2,3.63034]
[1726237077810,1.44162,2366.8,2366.3,1.0563]
[1726237078018,1.44162,2366.8,2366.5,3.63028]
[1726237078019,0.42248,2366.6,2366.5,3.63028]
[1726237078502,1.83762,2366.8,2366.6,0.42247]
[1726237078503,0.42247,2366.7,2366.6,0.42247]
[1726237078705,1.83762,2366.8,2366.5,3.2078]
[1726237078706,0.42248,2366.6,2366.5,3.63028]
[1726237080116,0.33800309,2367.0,2366.5,7.4334]
[1726237080314,4.146,2367.5,2367.4,0.42234]
[1726237080315,3.00160667,2367.5,2367.4,0.42234]
[1726237080520,0.7923,2367.5,2367.4,0.42234]
[1726237080708,2.20930667,2367.6,2367.3,3.3]
[1726237081015,2.20930667,2367.6,2367.2,3.2078]
[1726237081318,0.42238,2367.2,2366.8,7.82824]
[1726237081520,0.3866,2367.1,2366.9,0.42241]
[1726237081816,0.4057,2367.5,2366.9,0.42241]
[1726237082009,0.42237,2367.3,2366.9,0.42241]
[1726237082210,0.42237,2367.3,2367.1,3.2078]
[1726237082410,0.7603,2367.4,2367.1,3.2078]
[1726237082411,0.42237,2367.2,2367.1,3.2078]
[1726237082610,0.42236,2367.3,2366.9,0.42241]
[1726237082815,0.7603,2367.4,2366.9,0.42242]
[1726237083005,0.7603,2367.4,2366.8,6.93023]
[1726237083209,0.42238,2367.2,2366.8,6.93023]
[1726237083507,0.7603,2367.4,2367.1,3.2078]
[1726237083909,0.42235,2367.3,2367.1,3.2078]
[1726237084116,0.42236,2367.3,2367.1,3.2078]
[1726237084308,0.42236,2367.3,2366.9,0.42242]
[1726237084707,0.42237,2367.2,2366.8,6.93023]
[1726237084911,0.42236,2367.3,2366.9,0.42242]
[1726237085720,0.42236,2367.3,2367.1,3.2078]
[1726237086112,0.7603,2367.4,2367.1,3.63018]
[1726237086419,2.59590667,2367.4,2367.2,0.42236]
[1726237086625,3.01825667,2367.4,2367.1,3.63019]
[1726237086829,3.01825667,2367.4,2367.1,3.2078]
[1726237087123,3.01825667,2367.4,2367.1,3.63019]
[1726237087416,3.01825667,2367.4,2366.8,3.3]